bitfinex-derivatives/quotes_BNBF0:USTF0_20251027
["timestamp","ask_amount","ask_price","bid_price","bid_amount"]
[1761556060635,0.15138564,1151.4,1147.8,0.63918041]
[1761556060836,1.28077295,1151.5,1147.9,0.54152814]
[1761556061032,1.28077295,1151.5,1148.0,0.54152814]
[1761556061237,1.28077295,1151.5,1148.1,0.54152814]
[1761556061538,1.28077295,1151.2,1148.2,0.54152814]
[1761556061735,1.28077295,1151.2,1148.3,0.54152814]
[1761556062039,1.28077295,1150.8,1148.4,0.54152814]
[1761556062236,1.28077295,1150.9,1148.5,0.54152814]
[1761556062439,1.28077295,1150.9,1148.2,0.63918041]
[1761556063039,1.28077295,1151.2,1148.3,0.5418037]
[1761556063241,1.28077295,1151.1,1148.4,0.5418037]
[1761556063440,1.28077295,1151.1,1148.5,0.5418037]
[1761556063740,1.28077295,1151.1,1148.6,0.5418037]
[1761556063937,1.28077295,1151.1,1148.1,0.63918041]
[1761556064141,1.28077295,1151.2,1148.1,0.63918041]
[1761556064340,1.28077295,1151.3,1148.2,0.54188706]
[1761556064537,1.28077295,1151.6,1148.3,0.54188706]
[1761556064837,1.28077295,1151.5,1148.4,0.54188706]
[1761556065035,1.28077295,1151.6,1148.5,0.54188706]
[1761556065235,1.28077295,1151.5,1148.6,0.54188706]
[1761556065437,1.28077295,1151.6,1148.7,0.54181731]
[1761556065641,1.28077295,1151.7,1148.0,0.63918041]
[1761556065841,1.28077295,1151.7,1148.1,0.54180986]
[1761556066038,1.28077295,1151.7,1148.2,0.54180986]
[1761556066341,1.28077295,1151.7,1148.3,0.54180986]
[1761556066541,1.28077295,1151.7,1148.4,0.54180986]
[1761556066740,1.28077295,1151.7,1148.5,0.54180986]
[1761556066939,1.28077295,1151.5,1148.6,0.54180986]
[1761556067144,1.28077295,1151.5,1148.7,0.54180986]
[1761556067443,1.28077295,1151.6,1148.1,0.63918041]
[1761556067642,1.28077295,1151.6,1148.2,0.54165608]
[1761556067843,1.28077295,1151.5,1148.3,0.54165608]
[1761556068044,1.28077295,1151.6,1148.4,0.54165608]
[1761556068240,1.28077295,1151.6,1148.5,0.54165608]
[1761556068444,1.28077295,1151.5,1148.6,0.54165608]
[1761556068644,1.43210921,1152.0,1148.7,0.54165608]
[1761556068844,1.28077295,1151.3,1148.8,0.5413925]
[1761556069043,1.28077295,1151.7,1148.9,1.18057291]
[1761556069243,1.28077295,1152.0,1149.2,0.63918041]
[1761556069543,2.13925744,1152.8,1149.3,0.5413925]
[1761556069544,1.28077295,1152.5,1149.3,0.5413925]
[1761556069740,1.28077295,1152.6,1149.4,0.5413925]
[1761556069944,2.13925744,1152.8,1149.5,0.5413925]
[1761556069945,1.28077295,1152.8,1149.5,0.5413925]
[1761556070143,1.28077295,1152.9,1149.6,0.5413925]
[1761556070341,1.28077295,1152.9,1149.7,0.5413925]
[1761556070644,1.28077295,1152.4,1148.6,0.63918041]
[1761556070847,1.28077295,1152.4,1148.7,1.1792752]
[1761556071046,1.28077295,1152.4,1148.8,0.54009479]
[1761556071346,1.28077295,1152.4,1148.9,0.54009479]
[1761556071546,1.28077295,1152.4,1149.0,0.54009479]
[1761556071746,1.28077295,1152.4,1149.1,0.54009479]
[1761556072046,1.28077295,1152.6,1149.2,0.54009479]
[1761556072346,1.28077295,1152.9,1149.3,0.54009479]
[1761556072543,1.43200103,1153.0,1149.4,0.54009479]
[1761556072742,1.43200103,1153.0,1148.6,0.63918041]
[1761556073046,1.28077295,1152.9,1148.7,0.53943615]
[1761556073242,0.15122808,1153.0,1148.8,0.53943615]
[1761556073243,1.28077295,1152.8,1148.8,0.53943615]
[1761556073547,1.28077295,1152.8,1148.9,0.53943615]
[1761556073746,1.28077295,1152.8,1149.0,0.53943615]
[1761556074043,1.28077295,1152.7,1149.1,0.53943615]
[1761556074243,1.28077295,1152.7,1149.2,0.53943615]
[1761556074548,1.28077295,1152.6,1149.3,0.53943615]
[1761556074747,1.28077295,1152.8,1148.6,0.63918041]
[1761556074944,1.28077295,1152.8,1148.7,0.53883403]
[1761556075246,1.28077295,1152.8,1148.8,0.53883403]
[1761556075446,1.28077295,1152.8,1148.9,0.53883403]
[1761556075647,1.28077295,1152.8,1149.0,0.53883403]
[1761556075846,1.28077295,1152.8,1149.1,0.53883403]
[1761556076045,1.28077295,1152.8,1149.2,0.53883403]
[1761556076245,1.28077295,1152.7,1148.7,0.63918041]
[1761556076446,1.28077295,1152.3,1148.8,1.17742421]
[1761556076646,1.28077295,1152.7,1148.9,0.5382438]
[1761556076848,1.28077295,1152.7,1149.0,0.5382438]
[1761556077045,1.28077295,1152.7,1149.1,0.5382438]
[1761556077246,1.28077295,1152.7,1149.2,0.5382438]
[1761556077447,1.28077295,1152.7,1148.7,0.63918041]
[1761556077650,1.28077295,1152.8,1148.8,0.53796553]
[1761556077847,1.28077295,1152.8,1148.9,0.53796553]
[1761556078051,1.28077295,1152.8,1149.0,0.53796553]
[1761556078248,1.28077295,1152.8,1149.1,0.53796553]
[1761556078450,1.28077295,1152.7,1149.2,0.53796553]
[1761556078650,0.15122808,1153.0,1149.3,0.53796553]
[1761556078954,0.15122808,1153.0,1149.4,0.53796553]
[1761556079252,0.15122808,1153.0,1149.5,0.53796553]
[1761556079453,0.15122808,1153.0,1148.8,0.63918041]
[1761556079753,0.15122808,1153.0,1148.9,0.53726493]
[1761556079950,0.15122808,1153.0,1149.0,0.53726493]
[1761556080148,0.15122808,1153.0,1149.1,0.53726493]
[1761556080349,0.15122808,1153.0,1149.2,0.53726493]
[1761556080654,1.28077295,1152.6,1149.3,0.53726493]
[1761556080852,1.43200103,1153.0,1149.4,0.53726493]
[1761556081052,1.43200103,1153.0,1148.9,0.63918041]
[1761556081254,1.28077295,1152.7,1149.0,0.5371981]
[1761556081450,1.28077295,1152.5,1149.1,0.5371981]
[1761556081653,1.28077295,1152.5,1148.7,0.63918041]
[1761556081855,1.28077295,1152.6,1148.8,0.53716193]
[1761556082156,1.28077295,1152.7,1148.8,1.17634234]
[1761556082456,1.28077295,1152.7,1148.9,0.53716193]
[1761556082756,1.28077295,1152.9,1149.0,0.53716193]
[1761556082953,1.28077295,1152.9,1149.1,0.53716193]
[1761556083152,1.28077295,1152.9,1149.2,0.53716193]
[1761556083352,1.28077295,1152.9,1148.7,0.63918041]
[1761556083550,1.28077295,1152.9,1148.8,0.53673117]
[1761556083751,1.28077295,1152.9,1148.9,0.53673117]
[1761556084056,1.28077295,1152.9,1149.0,0.53673117]
[1761556084256,1.43200103,1153.0,1149.1,0.53673117]
[1761556084457,1.43200103,1153.0,1149.2,0.53673117]
[1761556084752,1.43200103,1153.0,1149.3,0.53652733]
[1761556084954,0.15122808,1153.0,1148.7,0.63918041]
[1761556085154,1.43200103,1153.0,1148.8,1.17568619]
[1761556085355,0.15122808,1153.0,1148.9,1.17568619]
[1761556085557,0.15122808,1153.0,1149.0,0.53650578]
[1761556085757,0.15122808,1153.0,1149.1,0.53650578]
[1761556085958,0.15122808,1153.0,1149.2,0.53650578]
[1761556086160,0.15122808,1153.0,1149.3,0.53650578]
[1761556086459,0.15122808,1153.0,1149.4,0.53650578]
[1761556086755,0.15122808,1153.0,1148.9,0.63918041]
[1761556086956,0.15122808,1153.0,1149.0,0.53596153]
[1761556087160,0.15122808,1153.0,1149.1,0.53596153]
[1761556087357,1.43200103,1153.0,1149.2,0.53596153]
[1761556087558,1.43200103,1153.0,1148.8,0.63918041]
[1761556087858,1.43200103,1153.0,1148.9,0.53579215]
[1761556088055,1.43200103,1153.0,1149.0,0.53579215]
[1761556088256,1.43200103,1153.0,1149.1,0.53579215]
[1761556088460,0.15122808,1153.0,1149.2,0.53579215]
[1761556088661,0.15122808,1153.0,1149.3,0.53579215]
[1761556088859,0.15122808,1153.0,1148.6,0.63918041]
[1761556089159,0.15122808,1153.0,1148.7,0.53563385]
[1761556089360,0.15122808,1153.0,1148.8,0.53563385]
[1761556089559,0.15122808,1153.0,1148.9,0.53563385]
[1761556089761,0.15122808,1153.0,1149.0,0.53563385]
[1761556089965,0.15122808,1153.0,1149.1,0.53563385]
[1761556090160,0.15122808,1153.0,1149.2,0.53563385]
[1761556090463,0.15122808,1153.0,1148.6,0.63918041]
[1761556090464,1.28077295,1152.5,1148.6,0.63918041]
[1761556090661,1.28077295,1152.6,1148.7,0.53587713]
[1761556090864,1.28077295,1152.9,1148.8,0.53587713]
[1761556091064,1.28077295,1152.9,1148.9,0.53587713]
[1761556091260,1.28077295,1152.9,1148.5,0.63918041]
[1761556091261,1.28077295,1152.9,1149.0,0.53587713]
[1761556091464,1.28077295,1152.9,1148.5,0.63918041]
[1761556091667,1.28077295,1152.9,1148.6,0.53596216]
[1761556091869,1.28077295,1152.9,1148.7,0.53596216]
[1761556092064,1.28077295,1152.9,1148.8,0.53596216]
[1761556092269,1.28077295,1152.9,1148.9,0.53596216]
[1761556092464,1.28077295,1152.9,1149.0,0.53596216]
[1761556092665,1.28077295,1152.9,1148.5,0.63918041]
[1761556092865,1.28077295,1152.8,1148.6,0.53613215]
[1761556093067,1.28077295,1152.8,1148.7,0.53613215]
[1761556093269,1.28077295,1152.8,1148.8,0.53613215]
[1761556093468,1.28077295,1152.8,1148.5,0.63918041]
[1761556093469,1.28077295,1152.8,1148.9,0.53613215]
[1761556093669,1.28077295,1152.8,1149.0,0.53613215]
[1761556093865,1.28077295,1152.8,1148.4,0.63918041]
[1761556094068,1.28077295,1152.8,1148.5,0.53637486]
[1761556094268,1.28077295,1152.7,1148.6,0.53637486]
[1761556094467,1.28077295,1152.7,1148.7,0.53637486]
[1761556094666,1.28077295,1152.8,1148.8,0.53637486]
[1761556094867,1.28077295,1152.5,1148.9,0.53637486]
[1761556095168,1.28077295,1152.5,1148.1,0.63918041]
[1761556095367,1.28077295,1152.5,1148.2,0.53698054]
[1761556095565,1.28077295,1152.5,1148.3,0.53698054]
[1761556095768,1.28077295,1152.5,1148.4,0.53698054]
[1761556095972,1.28077295,1152.5,1148.5,0.53698054]
[1761556096169,1.28077295,1152.4,1148.6,0.53698054]
[1761556096372,1.28077295,1152.4,1148.7,0.53698054]
[1761556096567,1.28077295,1152.4,1148.1,0.63918041]
[1761556096769,1.28077295,1152.4,1148.2,0.53736136]
[1761556096969,1.28077295,1152.4,1148.3,0.53736136]
[1761556097169,1.28077295,1152.5,1148.4,0.53736136]
[1761556097473,1.28077295,1152.5,1148.5,0.53736136]
[1761556097670,1.28077295,1152.5,1148.6,0.53736136]
[1761556097873,1.28077295,1152.5,1148.7,0.53736136]
[1761556098069,1.28077295,1152.4,1148.8,0.53736136]
[1761556098269,1.28077295,1152.3,1148.4,0.63918041]
[1761556098474,1.28077295,1152.3,1148.5,0.53780956]
[1761556098770,1.28077295,1152.3,1148.6,0.53780956]
[1761556098972,1.28077295,1152.3,1148.7,0.53780956]
[1761556099169,1.28077295,1152.1,1148.8,0.53780956]
[1761556099370,1.28077295,1152.2,1148.9,0.53780956]
[1761556099670,1.28077295,1152.2,1149.0,0.53780956]
[1761556099973,1.28077295,1152.2,1148.6,0.63918041]
[1761556100174,1.28077295,1152.2,1148.7,0.53804735]
[1761556100377,1.28077295,1152.2,1148.8,0.53804735]
[1761556100573,1.28077295,1152.6,1148.9,0.53804735]
[1761556100774,1.28077295,1152.6,1149.0,0.53804735]
[1761556100978,1.28077295,1152.6,1149.1,0.53804735]
[1761556101174,1.28077295,1152.6,1148.5,0.63918041]
[1761556101373,1.28077295,1152.6,1148.6,0.53849816]
[1761556101578,1.28077295,1152.2,1148.8,0.63918041]
[1761556101775,1.28077295,1152.2,1148.9,0.53849816]
[1761556102078,1.28077295,1152.1,1148.9,0.53849816]
[1761556102279,1.28077295,1152.2,1149.0,0.53849816]
[1761556102474,1.28077295,1152.1,1148.6,0.63918041]
[1761556102678,1.28077295,1152.1,1148.7,0.53876377]
[1761556102978,1.28077295,1152.1,1148.8,0.53876377]
[1761556103275,1.28077295,1152.1,1148.9,0.53876377]
[1761556103480,1.28077295,1152.5,1149.0,0.53876377]
[1761556103780,1.28077295,1152.5,1149.1,0.53876377]
[1761556104079,1.28077295,1152.5,1148.5,0.63918041]
[1761556104376,1.28077295,1152.7,1148.7,0.63918041]
[1761556104674,1.28077295,1152.8,1148.9,0.63918041]
[1761556104876,1.28077295,1152.8,1149.0,0.53907239]
[1761556105075,1.28077295,1152.8,1149.1,0.53907239]
[1761556105276,1.28077295,1152.8,1149.2,0.53907239]
[1761556105480,1.28077295,1152.8,1149.3,0.53907239]
[1761556105687,1.28077295,1152.8,1149.4,0.53907239]
[1761556105883,1.28077295,1152.8,1149.5,0.53907239]
[1761556106086,1.28077295,1152.8,1148.9,0.63918041]
[1761556106291,1.28077295,1152.8,1149.0,0.53937516]
[1761556106487,1.28077295,1152.7,1149.1,0.53937516]
[1761556106691,1.28077295,1152.7,1149.2,0.53937516]
[1761556106888,1.28077295,1152.7,1149.3,0.53937516]
[1761556107191,1.28077295,1152.7,1149.4,0.53937516]
[1761556107391,1.28077295,1152.7,1148.9,0.63918041]
[1761556107592,1.28077295,1152.7,1149.0,0.53962396]
[1761556107891,1.28077295,1152.9,1149.1,0.53962396]
[1761556108088,1.28077295,1152.9,1149.2,0.53962396]
[1761556108289,1.28077295,1152.9,1149.3,0.53962396]
[1761556108493,1.28077295,1152.9,1149.4,0.53962396]
[1761556108694,1.28077295,1152.9,1149.5,0.53962396]
[1761556108889,1.43200103,1153.0,1148.8,0.63918041]
[1761556109194,1.43200103,1153.0,1148.9,0.53987632]
[1761556109396,1.43200103,1153.0,1149.0,0.53987632]
[1761556109590,1.43200103,1153.0,1149.1,0.53987632]
[1761556109795,1.43200103,1153.0,1149.2,0.53987632]
[1761556109796,1.28077295,1152.1,1149.2,0.53987632]
[1761556109996,1.28077295,1151.9,1148.8,0.63918041]
[1761556110298,1.28077295,1151.8,1148.8,0.63918041]
[1761556111394,1.28077295,1151.8,1148.6,0.85259896]
[1761556111593,1.28077295,1152.0,1148.8,0.64181016]
[1761556111795,1.28077295,1152.0,1148.9,0.54104044]
[1761556111997,1.28077295,1152.0,1149.0,0.54104044]
[1761556112194,1.28077295,1152.1,1149.1,1.1828506]
[1761556112496,1.28077295,1152.1,1149.2,0.54104044]
[1761556112695,1.28077295,1152.1,1149.3,0.54104044]
[1761556112997,1.28077295,1152.1,1149.4,0.54104044]
[1761556113198,1.28077295,1152.0,1149.5,0.54104044]
[1761556113392,1.28077295,1152.0,1149.1,0.64181016]
[1761556113597,1.28077295,1152.0,1149.2,0.54196862]
[1761556113797,1.28077295,1152.0,1149.3,0.54196862]
[1761556113998,1.28077295,1152.4,1149.4,0.54196862]
[1761556114196,1.28077295,1152.3,1149.5,0.54196862]
[1761556114396,1.28077295,1152.3,1149.6,0.54196862]
[1761556114600,1.28077295,1152.3,1149.0,0.64181016]
[1761556114899,1.28077295,1152.3,1149.1,0.54252079]
[1761556115099,1.28077295,1152.3,1149.2,0.54252079]
[1761556115395,1.28077295,1152.3,1149.0,0.64181016]
[1761556115396,1.28077295,1152.3,1149.3,0.54252079]
[1761556115599,1.28077295,1152.2,1149.4,0.54252079]
[1761556115798,1.28077295,1152.2,1149.5,0.54252079]
[1761556115999,1.28077295,1152.2,1149.6,0.54252079]
[1761556116196,1.28077295,1152.1,1148.9,0.64181016]
[1761556116399,1.28077295,1152.1,1149.0,0.54388905]
[1761556116597,1.28077295,1152.1,1149.1,0.54388905]
[1761556116796,1.28077295,1152.1,1149.2,0.54388905]
[1761556117000,1.28077295,1152.1,1149.3,0.54388905]
[1761556117198,1.28077295,1151.9,1149.4,0.54388905]
[1761556117402,1.28077295,1151.9,1149.0,0.64181016]
[1761556117403,1.28077295,1151.9,1149.5,0.54388905]
[1761556117598,1.28077295,1151.9,1149.6,0.54388905]
[1761556117896,1.28077295,1151.9,1149.0,0.64181016]
[1761556118101,1.28077295,1151.8,1149.1,0.54473269]
[1761556118299,1.28077295,1151.8,1149.2,0.54473269]
[1761556118498,1.28077295,1151.8,1149.3,0.54473269]
[1761556118696,1.28077295,1151.6,1149.4,0.54473269]
[1761556118901,1.28077295,1151.6,1149.1,0.64181016]
[1761556118902,1.28077295,1151.6,1149.5,0.54473269]
[1761556119099,1.28077295,1151.6,1149.6,0.54473269]
[1761556119405,1.28077295,1151.5,1149.0,0.64181016]
[1761556119601,1.28077295,1151.0,1149.1,1.18423248]
[1761556119898,1.28077295,1150.9,1149.2,0.54242232]
[1761556120100,1.28077295,1150.9,1149.3,0.54242232]
[1761556120299,1.28077295,1150.9,1149.4,0.54270761]
[1761556120502,1.28077295,1152.4,1149.5,0.54270761]
[1761556120697,1.28077295,1152.1,1149.6,0.54270761]
[1761556120901,1.28077295,1152.1,1149.7,0.54270761]
[1761556121100,1.28077295,1152.1,1148.9,0.64181016]
[1761556121303,1.28077295,1152.0,1149.0,1.18464542]
[1761556121501,1.28077295,1152.0,1149.1,0.54283526]
[1761556121699,1.28077295,1152.0,1149.0,0.64181016]
[1761556121700,1.28077295,1152.0,1149.2,0.54283526]
[1761556121900,1.28077295,1151.9,1149.3,0.54283526]
[1761556122104,1.28077295,1151.9,1149.4,0.54283526]
[1761556122303,1.28077295,1151.9,1149.5,0.54283526]
[1761556122501,1.28077295,1151.9,1149.6,0.54283526]
[1761556122699,1.28077295,1151.9,1149.7,0.54283526]
[1761556123005,1.28077295,1151.9,1148.9,0.64181016]
[1761556123299,1.28077295,1151.9,1149.0,0.54304596]
[1761556123500,1.28077295,1152.0,1149.1,0.54304596]
[1761556123704,1.28077295,1151.9,1149.2,0.54304596]
[1761556123905,1.28077295,1151.3,1149.3,0.54304596]
[1761556124104,1.28077295,1151.3,1149.4,0.54304596]
[1761556124302,1.28077295,1151.3,1148.9,0.64181016]
[1761556124501,1.28077295,1151.0,1149.0,0.54344769]
[1761556124700,1.28077295,1151.0,1149.1,0.54344769]
[1761556124905,1.28077295,1151.0,1149.2,0.54344769]
[1761556125200,1.28077295,1151.0,1148.6,0.64181016]
[1761556125407,1.28077295,1151.4,1148.9,0.64181016]
[1761556125605,1.28077295,1151.4,1149.0,1.18529643]
[1761556125904,1.28077295,1151.4,1149.1,0.54348627]
[1761556126101,1.28077295,1151.4,1149.2,0.54348627]
[1761556126301,1.28077295,1151.4,1149.3,0.54348627]
[1761556126505,2.13925744,1152.7,1147.0,2.28305973]
[1761556126506,1.28077295,1151.3,1149.4,0.54348627]
[1761556126702,1.28077295,1151.3,1149.5,0.54348627]
[1761556126903,1.28077295,1151.8,1149.6,0.54348627]
[1761556127205,1.28077295,1151.8,1149.7,0.54348627]
[1761556127403,1.28077295,1151.8,1149.8,0.54348627]
[1761556127606,1.28077295,1151.8,1149.1,0.64181016]
[1761556127903,1.28077295,1151.9,1149.2,0.54356936]
[1761556128104,1.28077295,1151.9,1149.3,0.54356936]
[1761556128303,1.28077295,1151.9,1149.4,0.54356936]
[1761556128504,1.28077295,1151.9,1149.5,0.54356936]
[1761556128707,1.28077295,1151.9,1149.6,0.54356936]
[1761556128907,1.28077295,1151.8,1149.7,0.54356936]
[1761556129203,1.28077295,1151.8,1149.8,0.54356936]
[1761556129407,1.28077295,1151.8,1149.1,0.64181016]
[1761556129608,1.28077295,1151.9,1149.2,0.54370646]
[1761556129904,1.28077295,1151.9,1149.3,0.54370646]
[1761556130207,1.28077295,1151.8,1149.4,0.54370646]
[1761556130410,1.28077295,1151.8,1149.5,0.54370646]
[1761556130609,1.28077295,1151.8,1149.6,0.54370646]
[1761556130810,1.28077295,1151.8,1149.7,0.54370646]
[1761556131010,1.28077295,1151.4,1149.8,0.54370646]
[1761556131208,1.28077295,1151.4,1149.3,0.64181016]
[1761556131411,1.28077295,1151.4,1149.4,0.54392439]
[1761556131711,1.28077295,1151.3,1149.5,0.54392439]
[1761556132011,1.28077295,1151.3,1149.6,0.54392439]
[1761556132210,1.28077295,1151.2,1149.1,0.64181016]
[1761556132509,1.28077295,1151.2,1149.2,1.18575181]
[1761556132707,1.28077295,1151.2,1149.3,0.54394165]
[1761556132913,1.28077295,1151.3,1149.4,0.54394165]
[1761556133112,1.28077295,1151.3,1149.5,0.54394165]
[1761556133308,1.28077295,1151.2,1149.6,0.54394165]
[1761556133613,1.28077295,1151.4,1149.7,0.54393903]
[1761556133908,1.28077295,1151.4,1149.1,0.64181016]
[1761556134110,1.28077295,1151.4,1149.2,0.54393891]
[1761556134309,1.28077295,1151.4,1149.3,0.54393891]
[1761556134515,1.28077295,1151.4,1149.4,0.54393891]
[1761556134714,1.28077295,1151.4,1149.5,0.54393891]
[1761556135017,1.28077295,1151.5,1149.6,0.54393891]
[1761556135312,2.13925744,1152.8,1149.7,0.54393891]
[1761556135313,1.28077295,1151.4,1149.7,0.54393891]
[1761556135613,1.28077295,1151.7,1149.8,0.54392954]
[1761556135813,1.28077295,1151.9,1149.9,0.543903]
[1761556136017,1.28077295,1151.9,1149.1,0.64181016]
[1761556136218,1.28077295,1151.8,1149.3,0.64181016]
[1761556136417,1.28077295,1151.8,1149.4,0.54385075]
[1761556136712,1.28077295,1151.8,1149.5,0.54385075]
[1761556136917,1.28077295,1151.8,1149.6,0.54385075]
[1761556137113,1.28077295,1152.2,1149.7,0.54385075]
[1761556137313,1.28077295,1152.2,1149.8,0.54385075]
[1761556137512,1.28077295,1151.8,1149.9,0.54385075]
[1761556137816,1.28077295,1151.8,1150.0,0.54385075]
[1761556138011,1.28077295,1151.8,1150.1,0.54385075]
[1761556138215,0.15122808,1153.0,1150.2,0.54385075]
[1761556138216,1.28077295,1152.1,1150.2,0.54385075]
[1761556138418,1.28077295,1152.2,1149.5,0.64181016]
[1761556138617,1.28077295,1152.2,1149.6,0.54346892]
[1761556138918,1.28077295,1152.2,1149.7,0.54346892]
[1761556139113,1.28077295,1152.1,1149.8,0.54346892]
[1761556139312,1.28077295,1152.2,1149.9,0.54346892]
[1761556139514,1.28077295,1152.2,1150.0,0.54346892]
[1761556139713,1.28077295,1152.2,1150.1,0.54346892]
[1761556139926,1.28077295,1152.2,1150.2,0.54346892]
[1761556140115,1.28077295,1152.2,1149.5,0.64181016]
[1761556140419,1.28077295,1152.3,1149.6,0.54336084]
[1761556140617,1.28077295,1152.3,1149.7,0.54336084]
[1761556140917,1.28077295,1152.3,1149.8,0.54336084]
[1761556141220,1.28077295,1152.3,1149.9,0.54336084]
[1761556141516,1.28077295,1152.3,1150.0,0.54336084]
[1761556141720,1.28077295,1152.3,1150.1,0.54336084]
[1761556141920,1.28077295,1152.3,1150.2,0.54336084]
[1761556142121,1.28077295,1152.4,1150.3,0.54336084]
[1761556142319,1.28077295,1152.4,1149.6,0.64181016]
[1761556142517,1.28077295,1152.4,1149.7,0.54304796]
[1761556142716,1.28077295,1152.5,1149.8,0.54304796]
[1761556143017,1.28077295,1152.5,1149.9,0.54304796]
[1761556143216,1.28077295,1152.5,1150.0,0.54304796]
[1761556143421,1.28077295,1152.5,1150.1,0.54304796]
[1761556143621,1.28077295,1152.5,1150.2,0.54304796]
[1761556143820,1.28077295,1152.4,1150.3,0.54304796]
[1761556144120,1.28077295,1152.4,1149.5,0.64181016]
[1761556144318,1.28077295,1152.3,1149.6,1.18461096]
[1761556144617,1.28077295,1152.3,1149.7,0.5428008]
[1761556144820,1.28077295,1152.3,1149.8,0.5428008]
[1761556145018,1.28077295,1152.5,1149.9,0.5428008]
[1761556145320,1.28077295,1152.5,1150.0,0.5428008]
[1761556145521,1.28077295,1152.5,1150.1,0.5428008]
[1761556145716,1.28077295,1152.5,1150.2,0.5428008]
[1761556145916,1.28077295,1152.5,1150.3,0.5428008]
[1761556146121,1.28077295,1152.5,1149.5,0.64181016]
[1761556146318,1.28077295,1152.5,1149.6,0.54257972]
[1761556146620,1.28077295,1152.5,1149.7,0.54257972]
[1761556146821,1.28077295,1152.5,1149.8,0.54257972]
[1761556147021,1.28077295,1152.2,1149.9,0.54257972]
[1761556147221,1.28077295,1151.6,1150.0,0.54257972]
[1761556147418,1.28077295,1151.6,1149.6,0.64181016]
[1761556147721,1.28077295,1151.6,1149.7,0.54253589]
[1761556147921,1.28077295,1151.6,1149.8,0.54253589]
[1761556148119,1.28077295,1151.6,1149.9,0.54253589]
[1761556148322,1.28077295,1151.6,1150.0,0.54253589]
[1761556148622,1.28077295,1152.0,1150.1,0.54253589]
[1761556148920,1.28077295,1152.0,1149.4,0.64181016]
[1761556149118,1.28077295,1152.1,1149.5,0.54249028]
[1761556149322,1.28077295,1152.1,1149.6,0.54249028]
[1761556149517,1.28077295,1152.1,1149.7,0.54249028]
[1761556149717,1.28077295,1152.1,1149.8,0.54249028]
[1761556149916,1.28077295,1152.1,1149.9,0.54249028]
[1761556150118,1.28077295,1152.1,1150.0,0.54249028]
[1761556150316,1.28077295,1152.1,1149.4,0.64181016]
[1761556150519,1.28077295,1152.1,1149.5,0.5411791]
[1761556150722,1.28077295,1152.1,1149.6,0.5411791]
[1761556151017,1.28077295,1152.1,1149.7,0.5411791]
[1761556151224,1.28077295,1152.1,1149.8,0.5411791]
[1761556151419,1.28077295,1152.1,1149.9,0.5411791]
[1761556151619,1.28077295,1151.7,1149.4,0.64181016]
[1761556151820,1.28077295,1151.5,1149.5,0.54121737]
[1761556152019,1.28077295,1151.5,1149.6,0.54121737]
[1761556152321,1.28077295,1151.1,1149.2,0.64181016]
[1761556152520,1.28077295,1150.9,1149.3,0.54131186]
[1761556152720,1.28077295,1150.8,1148.9,0.64181016]
[1761556153021,1.28077295,1150.8,1149.0,0.54135813]
[1761556153221,1.28077295,1150.8,1149.1,0.54135813]
[1761556153423,1.28077295,1150.8,1149.2,0.54135813]
[1761556153624,1.28077295,1150.8,1148.9,0.64181016]
[1761556153922,1.28077295,1150.8,1149.0,0.5413573]
[1761556154120,1.28077295,1150.8,1149.1,0.5413573]
[1761556154324,1.28077295,1151.1,1148.5,0.64181016]
[1761556154523,1.28077295,1151.1,1148.6,1.18328287]
[1761556154721,1.28077295,1151.1,1148.7,0.54147271]
[1761556154925,1.28077295,1151.1,1148.8,0.54147271]
[1761556155124,1.28077295,1151.2,1148.9,0.54147271]
[1761556155322,1.28077295,1151.1,1149.0,0.54147271]
[1761556155624,1.28077295,1151.1,1149.1,0.54147271]
[1761556155820,1.28077295,1151.1,1148.6,0.64181016]
[1761556156125,1.28077295,1151.1,1148.7,0.54149267]
[1761556156424,1.28077295,1151.1,1148.8,0.54149267]
[1761556156624,1.28077295,1151.1,1148.9,0.54149267]
[1761556156826,1.28077295,1151.1,1149.0,0.54149267]
[1761556157021,1.28077295,1150.9,1149.1,0.54149267]
[1761556157224,1.28077295,1151.0,1149.2,0.5414553]
[1761556157424,1.28077295,1151.0,1149.3,0.5414553]
[1761556157627,1.28077295,1151.0,1148.9,0.64181016]
[1761556157824,1.28077295,1151.0,1149.0,0.54154769]
[1761556158028,1.28077295,1151.0,1149.1,0.54154769]
[1761556158229,1.28077295,1151.1,1149.2,0.54154769]
[1761556158428,1.28077295,1151.1,1149.3,0.54154769]
[1761556158725,1.28077295,1151.0,1148.9,0.64181016]
[1761556158926,1.28077295,1150.8,1149.0,1.18340634]
[1761556159127,1.28077295,1150.8,1149.1,0.54159618]
[1761556159326,1.28077295,1150.8,1149.2,0.54159618]
[1761556159626,1.28077295,1150.8,1149.3,0.54159618]
[1761556159825,1.28077295,1150.8,1149.0,0.64181016]
[1761556160129,1.28077295,1150.8,1149.1,0.54164782]
[1761556160327,1.28077295,1150.8,1149.2,0.54164782]
[1761556160525,1.28077295,1150.8,1149.3,0.54164782]
[1761556160727,1.28077295,1150.8,1149.0,0.64181016]
[1761556160927,1.28077295,1150.8,1149.1,0.54166609]
[1761556161127,1.28077295,1150.8,1149.2,0.54166609]
[1761556161325,1.28077295,1150.8,1149.3,0.54166609]
[1761556161530,1.28077295,1150.8,1149.0,0.64181016]
[1761556161830,2.9949059,1151.9,1149.1,1.18349275]
[1761556161831,1.28077295,1151.0,1149.1,1.18349275]
[1761556162029,1.28077295,1151.2,1149.2,1.18349275]
[1761556162330,1.28077295,1151.2,1149.3,0.54168259]
[1761556162530,1.28077295,1151.3,1149.4,0.54168259]
[1761556162730,1.28077295,1151.3,1149.5,0.54168259]
[1761556162930,1.28077295,1151.3,1149.6,0.54168259]
[1761556163130,1.28077295,1151.3,1149.2,0.64181016]
[1761556163327,1.28077295,1151.3,1149.3,0.54167853]
[1761556163530,1.28077295,1151.4,1149.4,0.54167853]
[1761556163730,1.28077295,1151.4,1149.5,0.54167853]
[1761556163928,1.28077295,1151.4,1149.6,0.54167853]
[1761556164226,1.28077295,1151.3,1149.2,0.64181016]
[1761556164430,1.28077295,1151.4,1149.3,0.54166743]
[1761556164628,1.28077295,1151.4,1149.4,0.54166743]
[1761556164826,1.28077295,1151.4,1149.5,0.54166743]
[1761556165028,1.28077295,1151.7,1149.6,0.54166743]
[1761556165227,1.28077295,1151.7,1149.7,0.54166743]
[1761556165431,1.28077295,1151.7,1149.1,0.64181016]
[1761556165631,1.28077295,1151.7,1149.2,0.54167515]
[1761556165926,1.28077295,1151.7,1149.3,0.54167515]
[1761556166131,1.28077295,1151.7,1149.4,0.54167515]
[1761556166329,1.28077295,1151.7,1149.5,0.54167515]
[1761556166532,1.28077295,1151.7,1149.6,0.54167515]
[1761556166729,1.28077295,1151.7,1149.7,0.54167515]
[1761556167032,1.28077295,1151.7,1149.1,0.64181016]
[1761556167232,1.28077295,1151.9,1149.2,0.5417177]
[1761556167432,1.28077295,1151.9,1149.3,0.5417177]
[1761556167727,1.28077295,1151.9,1149.4,0.5417177]
[1761556167929,1.28077295,1151.9,1149.5,0.5417177]
[1761556168232,1.28077295,1151.9,1149.6,0.5417177]
[1761556168529,1.28077295,1151.9,1149.7,0.5417177]
[1761556168728,1.28077295,1151.9,1149.8,0.5417177]
[1761556168927,1.28077295,1151.9,1149.1,0.64181016]
[1761556169131,1.28077295,1151.9,1149.2,0.54168418]